Workbook

Sheet Introduction
B2: Calculating Estate Taxes LT40
B3: Personal Finance: Another Perspective
F4: 2019-03-12
B5: Purpose:
B6: The purpose of this spreadsheet is to give some input into calculating your estate taxes. There is separate information
B7: by year, so you need to input the required information.
B10: Disclosure:
B11: The purpose of this spreadsheet and this class is to help you get your financial house in order and to help you
B12: on your road to financial self-reliance. If there are mistakes in this spreadsheet, please bring them to our
B13: attention and we will correct them in upcoming versions. The teacher, and BYU, specifically disclaim any
B14: liability or responsibility for claims, loss, or risk incurred, directly or indirectly, from using this material.

Sheet Estate Taxes
C2: ="Calculating Your Estate Taxes (LT40)" -> Calculating Your Estate Taxes (LT40)
C3: ="For the Tax Year "&E9 -> For the Tax Year 2019
C5: This Tool is to help you calculate your Gross Estate, Taxable Estate,
C6: Taxable Estate, and It uses updated information for each year.
D9: Year at Death | E9: 2019 | G9: Total Excess of Annual Limits | J9: =SUM(J13:J22) -> 8000
D11: Key Data: | G11: Year | H11: Amount | I11: Exclusion | J11: Excess | Q11: Annual Estate Tax Limits
D12: Value of Assets at Death | E12: 10500000 | Q12: Year | R12: Limit | S12: Exclusion | T12: Rate | U12: Tax
D13: Life Insurance Policies | E13: 25000 | G13: =G14-1 -> 2011 | I13: =VLOOKUP(G13,Limits,2) -> 13000 | J13: =IF(H13>I13,H13-I13,0) -> 0 | Q13: 2010 | R13: 13000 | T13: 0 | U13: =S13*T13 -> 0
D14: Insurance Death Benefit | G14: 2012 | H14: 20000 | I14: 13000 | J14: 7000 | Q14: 2011 | R14: 13000 | S14: 5000000 | T14: 0.35 | U14: 1750000
D15: Funeral costs | E15: 15000 | G15: 2013 | H15: 15000 | I15: 14000 | J15: 1000 | Q15: =Q14+1 -> 2012 | R15: 13000 | S15: 5120000 | T15: 0.35 | U15: 1792000
D16: Estate Administrative Costs | E16: 5800 | G16: 2014 | I16: 14000 | J16: 0 | Q16: =Q15+1 -> 2013 | R16: 14000 | S16: 5250000 | T16: 0.4 | U16: 2100000
D17: Charities | G17: 2015 | I17: 14000 | J17: 0 | Q17: 2014 | R17: 14000 | S17: 5340000 | T17: 0.4 | U17: 2136000
D18: Note: Irrevocable Trusts (ILITS) are not included | G18: 2016 | I18: 14000 | J18: 0 | Q18: 2015 | R18: 14000 | S18: 5430000 | T18: 0.4 | U18: 2172000
G19: 2017 | H19: 8000 | I19: 14000 | J19: 0 | Q19: 2016 | R19: 14000 | S19: 5450000 | T19: 0.4 | U19: 2180000
D20: I. Detrmine your Gross Estate: | G20: 2018 | I20: 15000 | J20: 0 | Q20: 2017 | R20: 14000 | S20: 5490000 | T20: 0.4 | U20: 2196000
D21: Assets | E21: =E12 -> 10500000 | G21: =E9 -> 2019 | I21: 15000 | J21: 0 | Q21: 2018 | R21: 15000 | S21: 11180000 | T21: 0.4 | U21: =S21*T21 -> 4472000
D22: Life insurance (not in an ILIT) | E22: =E13 -> 25000 | Q22: 2019 | R22: 15000 | S22: 11400000 | T22: 0.4 | U22: =S22*T22 -> 4560000
D23: Insurance Death Benefits | E23: =E14 -> 0
D24: Gross Estate | E24: =E21+E22+E23 -> 10525000 | G24: =E9&" Estate Tax Information" -> 2019 Estate Tax Information
G25: Annual Exclusion | J25: =VLOOKUP($E$9,Limits,2) -> 15000
D26: II. Calculate your Taxable Estate | G26: Estate Tax Tax-Free Exclusion | J26: =VLOOKUP($E$9,Limits,3,FALSE) -> 11400000
D27: Gross Estate | E27: =E24 -> 10525000 | G27: Tax Rate on on Excess | J27: =VLOOKUP($E$9,Limits,4,FALSE) -> 0.4
D28: Funeral expenses | E28: =E15 -> 15000
D29: Administrative expenses | E29: =E16 -> 5800
D30: Charitable deductions | E30: =E17 -> 0
D31: Taxable Estate | E31: =E27-E28-E29-E30 -> 10504200 | G31: IV. Calculate your Estate Tax Liability
G32: Gift-Adjusted Taxable Estate | J32: =E36 -> 10512200
D33: III. Determine your Gift-Adjusted Taxable Estate | G33: =E9&" Unified Credit Amount" -> 2019 Unified Credit Amount | J33: =IF($J$32=0,0,VLOOKUP($E$9,Limits,3,FALSE)) -> 11400000
D34: Taxable Estate | E34: =E31 -> 10504200 | G34: Excess (if <= 0, no tax liability) | J34: =IF($J$32=0,0,J32-J33) -> -887800
D35: Gifts in Excess | E35: =J9 -> 8000 | G35: Tax Rate on Excess | J35: =IF($J$32=0,0,VLOOKUP($E$9,Limits,4,FALSE)) -> 0.4
D36: Gift-Adjusted Taxable Estate | E36: =E34+E35 -> 10512200 | G36: Estate Tax Liability | J36: =IF(J34<0,0,J34*J35) -> 0
